bitfinex-derivatives/quotes_SOLF0:USTF0_20220106
["timestamp","ask_amount","ask_price","bid_price","bid_amount"]
[1641428015138,3.301736,154.21,154.2,5.47778822]
[1641428015936,4.0,154.24,154.2,5.47778822]
[1641428016338,41.65024543,154.25,154.21,0.73340425]
[1641428016740,4.0,154.22,154.17,0.73340425]
[1641428016943,41.65024543,154.25,154.17,0.73340425]
[1641428017139,4.0,154.21,154.17,0.73340425]
[1641428018042,4.0,154.2,154.17,0.73340425]
[1641428018342,7.301736,154.2,154.16,27.66479]
[1641428018542,3.301736,154.2,154.16,17.39737375]
[1641428018942,3.301736,154.19,154.16,17.39737375]
[1641428019143,7.301736,154.19,154.16,17.39737375]
[1641428019747,3.301736,154.19,154.14,7.47353893]
[1641428020147,3.301736,154.19,154.15,6.47878199]
[1641428020348,3.301736,154.18,154.15,6.47878199]
[1641428021148,55.00136271,154.2,154.15,6.47878199]
[1641428021351,58.30309871,154.23,154.15,6.47878199]
[1641428021748,58.30309871,154.23,154.2,27.66479]
[1641428023450,58.30309871,154.25,154.2,27.66479]
[1641428023851,58.30309871,154.25,154.24,6.22402514]
[1641428025253,52.08065285,154.25,154.23,7.46932345]
[1641428025652,52.08065285,154.26,154.23,7.46932345]
[1641428025855,52.08065285,154.26,154.25,27.66479]
[1641428026455,50.20079549,154.27,154.25,27.66479]
[1641428026657,4.0,154.29,154.25,27.66479]
[1641428026955,28.6335503,154.31,154.25,27.66479]
[1641428027356,32.6335503,154.31,154.25,27.66479]
[1641428027758,28.6335503,154.31,154.25,27.66479]
[1641428028257,28.6335503,154.31,154.26,7.46788267]
[1641428029058,54.20079549,154.32,154.26,7.46788267]
[1641428029458,50.20079549,154.32,154.26,7.46788267]
[1641428029657,54.20079549,154.32,154.26,7.46788267]
[1641428029858,50.20079549,154.32,154.26,7.46788267]
[1641428030062,32.6335503,154.32,154.26,7.46788267]
[1641428030361,4.0,154.27,154.24,27.66479]
[1641428030559,4.0,154.25,154.19,6.47689368]
[1641428030759,4.0,154.29,154.19,6.47689368]
[1641428030958,4.0,154.25,154.19,6.47689368]
[1641428031159,4.0,154.29,154.19,6.47689368]
[1641428031363,4.0,154.23,154.19,6.47689368]
[1641428031759,4.0,154.24,154.2,27.66479]
[1641428031959,27.66479,154.3,154.2,27.66479]
[1641428032359,36.65810464,154.21,154.2,27.66479]
[1641428034564,36.65810464,154.22,154.2,27.66479]
[1641428035465,4.0,154.21,154.2,27.66479]
[1641428035666,36.65810464,154.22,154.2,27.66479]
[1641428035868,40.65810464,154.22,154.2,27.66479]
[1641428036266,4.0,154.21,154.2,27.66479]
[1641428036468,36.65810464,154.22,154.2,27.66479]
[1641428036667,54.98652283,154.25,154.2,27.66479]
[1641428037167,4.0,154.22,154.2,27.66479]
[1641428037367,4.0,154.21,154.2,27.66479]
[1641428037567,54.98652283,154.25,154.16,8.96718364]
[1641428037769,4.0,154.22,154.16,36.63197364]
[1641428037967,58.98652283,154.22,154.16,36.63197364]
[1641428038168,54.98652283,154.22,154.16,36.63197364]
[1641428038669,58.98652283,154.22,154.16,36.63197364]
[1641428039069,13.68119459,154.19,154.16,36.63197364]
[1641428039369,13.68119459,154.19,154.18,6.47731321]
[1641428039569,29.01352902,154.22,154.18,6.47731321]
[1641428039769,29.01352902,154.22,154.21,75.32958]
[1641428039969,23.01352902,154.22,154.21,55.32958]
[1641428040168,23.01352902,154.22,154.21,75.32958]
[1641428040370,4.0,154.25,154.21,55.32958]
[1641428040568,28.6335503,154.27,154.21,55.32958]
[1641428040773,4.0,154.25,154.18,11.06285032]
[1641428041270,4.0,154.25,154.18,6.47731321]
[1641428041470,54.98652283,154.29,154.18,6.47731321]
[1641428041769,4.0,154.24,154.18,6.47731321]
[1641428041971,4.0,154.23,154.18,34.14210321]
[1641428042270,4.0,154.24,154.18,34.14210321]
[1641428042471,4.0,154.19,154.18,34.14210321]
[1641428042771,4.0,154.19,154.17,4.58553711]
[1641428042971,4.0,154.18,154.17,4.58553711]
[1641428043171,8.0,154.18,154.14,4.5819119]
[1641428043572,4.0,154.15,154.14,4.5819119]
[1641428044573,4.0,154.15,154.1,27.66479]
[1641428044773,4.0,154.19,154.1,27.66479]
[1641428044972,4.0,154.15,154.1,27.66479]
[1641428045473,130.3138,154.2,154.1,27.66479]
[1641428045673,4.0,154.15,154.1,27.66479]
[1641428045875,4.0,154.13,154.1,27.66479]
[1641428046273,28.6335503,154.19,154.1,27.66479]
[1641428046673,28.6335503,154.19,154.15,6.47878199]
[1641428046874,28.6335503,154.19,154.18,6.47710344]
[1641428047474,54.98652283,154.27,154.18,6.47710344]
[1641428047673,4.0,154.22,154.18,6.47710344]
[1641428047876,4.0,154.22,154.18,34.14189344]
[1641428048073,54.98652283,154.27,154.18,34.14189344]
[1641428048575,4.0,154.23,154.18,34.14189344]
[1641428049074,87.62007313,154.28,154.18,34.14189344]
[1641428049274,4.0,154.23,154.18,34.14189344]
[1641428049477,83.62007313,154.28,154.18,34.14189344]
[1641428049874,83.62007313,154.28,154.22,27.66479]
[1641428050075,4.0,154.25,154.22,27.66479]
[1641428050475,28.6335503,154.28,154.22,27.66479]
[1641428050775,4.0,154.24,154.22,27.66479]
[1641428050976,28.6335503,154.28,154.22,27.66479]
[1641428051177,4.0,154.26,154.23,6.47521611]
[1641428051775,32.6335503,154.28,154.23,6.47521611]
[1641428051976,28.6335503,154.28,154.25,27.66479]
[1641428052175,4.0,154.26,154.25,27.66479]
[1641428052676,28.6335503,154.31,154.25,27.66479]
[1641428052876,4.0,154.28,154.25,27.66479]
[1641428053077,28.6335503,154.31,154.25,27.66479]
[1641428053275,4.0,154.29,154.25,27.66479]
[1641428053980,4.0,154.27,154.25,27.66479]
[1641428054178,4.0,154.26,154.25,27.66479]
[1641428054679,4.0,154.26,154.23,6.47521611]
[1641428055078,4.0,154.24,154.23,6.47521611]
[1641428055678,4.0,154.24,154.23,12.69968359]
[1641428056579,4.0,154.24,154.23,18.92378911]
[1641428057078,4.0,154.24,154.23,12.448573]
[1641428059279,4.0,154.24,154.2,27.66479]
[1641428059280,8.0,154.24,154.2,27.66479]
[1641428059479,4.0,154.22,154.19,4.5819119]
[1641428059679,4.0,154.21,154.19,4.5819119]
[1641428059880,4.0,154.2,154.19,4.5819119]
[1641428060080,4.0,154.2,154.17,35.13673257]
[1641428060280,4.0,154.18,154.15,4.5819119]
[1641428060481,62.7395,154.25,154.15,4.5819119]
[1641428060681,4.0,154.22,154.16,6.47836227]
[1641428060883,4.0,154.23,154.19,7.47086089]
[1641428061084,4.0,154.23,154.19,13.94796433]
[1641428061683,36.65902747,154.2,154.19,13.94796433]
[1641428061983,36.65902747,154.2,154.19,41.61275433]
[1641428062183,36.65902747,154.2,154.19,69.27754433]
[1641428062384,4.0,154.2,154.19,13.94796433]
[1641428062583,4.0,154.2,154.19,7.47086089]
[1641428063584,36.65902747,154.24,154.19,7.47086089]
[1641428063784,40.65902747,154.23,154.19,7.47086089]
[1641428064185,36.65902747,154.23,154.21,20.33400176]
[1641428064585,40.65902747,154.25,154.22,6.22482806]
[1641428064785,4.0,154.23,154.22,6.22482806]
[1641428065586,7.26746122,154.23,154.22,6.22482806]
[1641428065786,11.26746122,154.23,154.22,6.22482806]
[1641428065989,11.26746122,154.23,154.19,7.47086089]
[1641428066188,4.0,154.2,154.16,34.14294243]
[1641428066388,8.0,154.17,154.15,6.22768717]
[1641428066693,8.0,154.16,154.15,6.22768717]
[1641428067387,4.0,154.16,154.12,11.06121518]
[1641428067588,4.54576759,154.17,154.12,6.48004147]
[1641428067889,4.0,154.16,154.12,6.48004147]
[1641428068088,4.54576759,154.17,154.14,6.2280549]
[1641428068387,4.0,154.15,154.14,6.2280549]
[1641428068986,7.29635683,154.17,154.14,6.22771197]
[1641428069187,3.29635683,154.17,154.14,6.22771197]
[1641428069390,4.0,154.15,154.14,6.22771197]
[1641428069586,7.29635683,154.17,154.14,6.22771197]
[1641428069988,4.0,154.15,154.14,6.22771197]
[1641428070390,8.58187687,154.15,154.14,6.22771197]
[1641428070590,4.58187687,154.15,154.14,6.22771197]
[1641428070791,1.65195988,154.16,154.13,6.47941167]
[1641428072092,1.65195988,154.16,154.15,27.66479]
[1641428072293,4.0,154.16,154.13,6.47941167]
[1641428072493,4.0,154.14,154.13,6.47941167]
[1641428072893,4.0,154.17,154.13,6.47941167]
[1641428073093,17.74563062,154.18,154.13,6.47941167]
[1641428073293,4.0,154.15,154.13,6.47941167]
[1641428073494,4.0,154.17,154.13,6.47941167]
[1641428073695,17.74563062,154.18,154.13,6.47941167]
[1641428073895,4.0,154.14,154.13,6.47941167]
[1641428074700,8.0,154.14,154.13,6.47941167]
[1641428074899,4.0,154.14,154.11,20.23128968]
[1641428075099,4.0,154.12,154.11,20.23128968]
[1641428075498,8.0,154.12,154.11,13.74563062]
[1641428075704,8.0,154.12,154.1,27.66479]
[1641428075905,4.0,154.11,154.1,27.66479]
[1641428076104,8.0,154.11,154.05,36.65902747]
[1641428076303,4.0,154.06,154.05,36.65902747]
[1641428076505,8.0,154.06,154.05,36.65902747]
[1641428076805,8.0,154.06,154.02,2.747e-05]
[1641428077005,8.0,154.03,154.02,2.747e-05]
[1641428078009,8.0,154.03,153.97,54.98652283]
[1641428078206,4.0,154.03,153.96,27.66479]
[1641428078405,4.0,153.97,153.96,27.66479]
[1641428079005,4.0,153.97,153.95,6.4871878]
[1641428079205,4.0,154.01,153.93,3.66908237]
[1641428079605,4.0,154.01,153.96,6.48012072]
[1641428079806,4.0,153.97,153.96,6.48012072]
[1641428080307,4.0,153.97,153.96,34.14491072]
[1641428081005,4.0,154.01,153.96,34.14491072]
[1641428081006,4.0,153.99,153.96,34.151557]
[1641428081205,67.8352,154.04,153.98,6.4855049]
[1641428081206,63.8352,154.04,153.98,6.4855049]
[1641428081408,67.8352,154.04,153.98,6.4855049]
[1641428081607,64.3236,154.06,153.98,6.4855049]
[1641428081608,4.0,154.03,153.98,6.4855049]
[1641428081809,4.0,154.03,154.02,5.19406968]
[1641428082211,8.0,154.03,153.97,6.48012072]
[1641428082412,4.0,153.98,153.97,6.48012072]
[1641428083412,4.0,153.98,153.96,6.23513544]
[1641428083612,4.0,153.97,153.96,6.23513544]
[1641428083814,8.0,153.97,153.93,6.23627638]
[1641428084014,4.0,153.94,153.93,6.23627638]
[1641428084614,8.0,153.94,153.93,6.23627638]
[1641428084814,8.0,153.94,153.9,17.2106881]
[1641428085016,8.0,153.91,153.9,17.2106881]
[1641428085714,8.0,153.91,153.88,17.2106881]
[1641428085915,8.0,153.89,153.88,17.2106881]
[1641428087017,8.0,153.89,153.84,65.7170086]
[1641428087215,27.66479,153.9,153.84,10.73048577]
[1641428087216,4.0,153.85,153.84,10.73048577]
[1641428088220,4.0,153.85,153.79,54.98652283]
[1641428088423,4.0,153.8,153.79,54.98652283]
[1641428089023,4.0,153.8,153.75,27.66479]
[1641428089024,27.66479,153.86,153.75,82.65131283]
[1641428089322,4.0,153.77,153.75,82.65131283]
[1641428089522,63.5624,153.85,153.75,82.65131283]
[1641428089722,67.5624,153.85,153.75,82.65131283]
[1641428089922,67.5624,153.85,153.75,27.66479]
[1641428089923,4.0,153.77,153.75,27.66479]
[1641428090126,4.0,153.77,153.73,6.49624842]
[1641428090324,63.5624,153.85,153.73,6.49624842]
[1641428090524,4.0,153.77,153.73,34.16103842]
[1641428091224,4.0,153.8,153.73,34.16103842]
[1641428091426,4.0,153.82,153.76,12.73836197]
[1641428091624,4.0,153.84,153.8,5.20155085]
[1641428092025,4.0,153.82,153.8,5.20155085]
[1641428092224,4.0,153.81,153.8,5.20155085]
[1641428092624,27.66479,153.86,153.8,5.20155085]
[1641428092826,4.0,153.83,153.82,5.2006011]
[1641428093026,8.0,153.83,153.77,5.20246325]
[1641428093225,4.0,153.78,153.77,5.20246325]
[1641428097031,4.0,153.8,153.77,5.20246325]
[1641428098033,27.66479,153.86,153.77,5.20246325]
[1641428098232,4.0,153.85,153.77,5.20246325]
[1641428098634,4.0,153.84,153.8,5.20150135]
[1641428098833,27.66479,153.86,153.8,5.20150135]
[1641428099032,4.0,153.81,153.8,5.20150135]
[1641428099232,31.66479,153.86,153.8,5.20150135]
[1641428099233,27.66479,153.86,153.8,5.20150135]
[1641428099634,27.66479,153.86,153.82,1.20070677]
[1641428099934,36.73283369,153.91,153.81,6.49287407]
[1641428100134,36.73283369,153.91,153.85,4.0]
[1641428100334,36.73283369,153.91,153.86,4.0]
[1641428100635,36.73283369,153.91,153.87,27.66479]
[1641428100834,102.68523369,153.97,153.87,27.66479]
[1641428101437,106.68523369,153.97,153.87,27.66479]
[1641428101635,102.68523369,153.97,153.87,27.66479]
[1641428101834,69.9524,153.97,153.87,31.66479]
[1641428102034,69.9524,153.97,153.87,27.66479]
[1641428102335,65.9524,153.97,153.87,27.66479]
[1641428102535,4.0,153.94,153.87,27.66479]
[1641428102736,4.0,153.91,153.85,6.23964871]
[1641428102936,4.0,153.88,153.85,36.73283369]
[1641428103138,4.0,153.89,153.85,36.73283369]
[1641428103337,4.0,153.88,153.85,36.73283369]
[1641428103538,4.0,153.86,153.85,36.73283369]
[1641428103936,6.49498263,153.94,153.76,102.21008733]
[1641428103937,4.0,153.89,153.78,47.4632239]
[1641428104337,4.0,153.89,153.78,51.4632239]
[1641428104537,4.0,153.89,153.78,47.4632239]
[1641428104738,36.73283369,153.93,153.85,4.0]
[1641428104939,36.73283369,153.93,153.86,4.0]
[1641428105137,36.73283369,153.93,153.87,4.0]
[1641428105339,36.73283369,153.93,153.91,5.19763224]
[1641428106140,36.73283369,153.93,153.84,6.24001833]
[1641428106342,100.11243369,153.99,153.85,36.73283369]
[1641428106740,27.66479,153.91,153.85,36.73283369]
[1641428107141,45.4339741,153.91,153.84,20.00920243]
[1641428107744,4.0,153.89,153.84,20.00920243]
[1641428108041,4.0,153.88,153.84,20.00920243]
[1641428108244,41.4339741,153.91,153.84,20.00920243]
[1641428109244,27.66479,153.91,153.85,13.7691841]
[1641428110545,27.66479,153.91,153.87,5.19888585]
[1641428110748,13.7691841,153.92,153.87,11.68944209]
[1641428111051,3.30780512,153.9,153.87,11.68944209]
[1641428112147,17.07698922,153.96,153.89,13.7691841]
[1641428112348,21.07698922,153.96,153.89,13.7691841]
[1641428112547,17.07698922,153.96,153.89,13.7691841]
[1641428112747,17.07698922,153.96,153.91,5.19754253]
[1641428112949,17.07698922,153.96,153.92,4.0]
[1641428113249,13.7691841,153.96,153.95,1.8885942]
[1641428113451,13.7691841,153.96,153.93,4.0]
[1641428113651,13.7691841,153.96,153.94,4.0]
[1641428113949,36.73283369,153.99,153.94,4.0]
[1641428114148,13.7691841,154.0,153.94,4.0]
[1641428114648,13.7691841,154.0,153.95,27.66479]
[1641428115052,13.7691841,154.01,153.95,27.66479]
[1641428116053,4.0,153.99,153.94,13.7691841]
[1641428116253,13.7691841,154.01,153.94,13.7691841]
[1641428116453,4.0,153.99,153.94,13.7691841]
[1641428116752,13.7691841,154.01,153.94,13.7691841]
[1641428116753,4.0,153.98,153.94,13.7691841]
[1641428117157,17.7691841,153.98,153.91,13.7691841]
[1641428117759,4.0,153.97,153.91,13.7691841]
[1641428118059,4.0,153.92,153.91,13.7691841]
[1641428119059,4.0,153.92,153.86,86.50045189]
[1641428119358,41.4339741,153.93,153.86,18.96845189]
[1641428120060,4.0,153.89,153.86,5.19926779]
[1641428120858,27.66479,153.88,153.86,5.19926779]
[1641428121860,4.0,153.87,153.82,13.7691841]
[1641428122060,4.0,153.84,153.82,13.7691841]
[1641428122359,27.66479,153.88,153.82,13.7691841]
[1641428122561,27.66479,153.88,153.83,13.7691841]
[1641428122762,4.0,153.87,153.83,13.7691841]
[1641428123663,4.0,153.87,153.81,13.7691841]
[1641428124467,4.0,153.86,153.81,13.7691841]
[1641428124865,27.66479,153.84,153.81,13.7691841]
[1641428125065,31.66479,153.84,153.81,13.7691841]
[1641428125666,31.66479,153.84,153.79,18.97078379]
[1641428125868,28.45293151,153.84,153.79,18.97078379]
[1641428126068,4.0,153.83,153.79,18.97078379]
[1641428126566,24.45293151,153.84,153.79,13.7691841]
[1641428126867,27.66479,153.8,153.79,13.7691841]
[1641428127067,27.66479,153.8,153.77,13.7691841]
[1641428127269,4.0,153.78,153.77,13.7691841]
[1641428127467,27.66479,153.8,153.77,13.7691841]
[1641428128067,31.66479,153.8,153.77,12.9593841]
[1641428128268,31.66479,153.8,153.75,12.9593841]
[1641428128269,27.66479,153.8,153.75,12.9593841]
[1641428128468,31.66479,153.8,153.75,12.9593841]
[1641428128669,27.66479,153.8,153.75,12.9593841]
[1641428128874,13.77915661,153.82,153.77,5.20234367]
[1641428129068,13.77915661,153.82,153.79,5.20165387]
[1641428129468,67.1583,153.85,153.79,5.20165387]
[1641428129671,27.66479,153.86,153.79,5.20165387]
[1641428129869,31.66479,153.86,153.79,5.20165387]
[1641428130468,27.66479,153.86,153.79,5.20165387]
[1641428130968,31.66479,153.86,153.79,5.20165387]
[1641428131472,27.66479,153.86,153.79,5.20165387]
[1641428131671,27.66479,153.87,153.82,4.59259305]
[1641428131875,27.66479,153.87,153.84,5.20020451]
[1641428132070,36.73283369,153.89,153.84,5.20020451]
[1641428132270,36.73283369,153.89,153.87,5.1991887]
[1641428132673,4.0,153.92,153.87,5.1991887]
[1641428133173,27.66479,153.91,153.87,5.1991887]
[1641428133373,27.66479,153.91,153.88,5.19856686]
[1641428133773,27.66479,153.91,153.86,4.59259305]
[1641428134974,11.88790406,153.9,153.85,9.79231087]
[1641428135778,4.0,153.88,153.85,9.79231087]
[1641428135977,4.0,153.86,153.85,4.59259305]
[1641428136177,4.0,153.87,153.81,12.71983207]
[1641428136382,4.0,153.89,153.81,12.71983207]
[1641428136579,15.88790406,153.9,153.81,12.71983207]
[1641428136777,11.88790406,153.9,153.81,12.71983207]
[1641428136979,48.62073775,153.9,153.84,5.20019382]
[1641428137578,48.62073775,153.9,153.85,5.19954098]
[1641428137878,11.88790406,153.9,153.85,5.19954098]
[1641428139383,11.88790406,153.9,153.81,11.67945525]
[1641428139581,4.0,153.86,153.81,11.67945525]
[1641428139779,4.0,153.87,153.81,11.67945525]
[1641428139980,4.0,153.88,153.81,11.67945525]
[1641428140980,4.0,153.89,153.81,11.67945525]
[1641428141179,27.66479,153.84,153.81,11.67945525]
[1641428141380,27.66479,153.84,153.81,5.20098947]
[1641428142380,27.66479,153.84,153.78,11.49114804]
[1641428142381,48.62073775,153.9,153.85,5.19967244]
[1641428142579,36.73283369,153.9,153.85,5.19967244]
[1641428142781,36.73283369,153.91,153.88,5.19866244]
[1641428143179,27.66479,153.89,153.88,5.19866244]
[1641428144779,39.55271656,153.89,153.88,5.19866244]
[1641428145482,27.66479,153.89,153.88,5.19866244]
[1641428147186,22.46633432,153.89,153.88,5.19866244]
[1641428147384,36.73283369,153.93,153.88,9.19866244]
[1641428147586,36.73283369,153.93,153.91,6.23711361]
[1641428147985,11.88442561,153.95,153.91,6.23711361]
[1641428148386,11.88442561,153.95,153.85,4.0]
[1641428148987,36.73283369,153.96,153.85,10.47846578]
[1641428149185,27.66479,153.95,153.85,38.14325578]
[1641428150189,11.88442561,153.94,153.86,6.47846578]
[1641428150590,4.0,153.91,153.86,6.47846578]
[1641428150791,15.88442561,153.94,153.86,6.47846578]
[1641428151191,27.66479,153.91,153.86,6.47846578]
[1641428151390,31.66479,153.91,153.86,6.47846578]
[1641428151790,31.66479,153.91,153.84,6.24024522]
[1641428151991,31.66479,153.91,153.84,6.24008694]
[1641428152690,27.66479,153.91,153.84,10.24008694]
[1641428152890,48.6172593,153.94,153.87,5.19891137]
[1641428153089,36.73283369,153.94,153.9,5.19796677]
[1641428153890,40.04198576,153.94,153.9,5.19796677]
[1641428154090,15.19381873,153.94,153.9,5.19796677]
[1641428155493,15.19381873,153.94,153.91,11.43502544]
[1641428155693,9.99712178,153.94,153.91,6.23733826]
[1641428156694,64.39762369,153.99,153.91,6.23733826]
[1641428157194,92.06241369,153.99,153.91,6.23733826]
[1641428157396,96.06241369,153.99,153.91,6.23733826]
[1641428157795,92.06241369,153.99,153.92,4.0]
[1641428157994,36.73283369,153.99,153.93,10.23653613]
[1641428158194,36.73283369,153.99,153.93,6.23653613]
[1641428158395,13.76825189,153.96,153.93,6.23653613]
[1641428159497,13.76825189,153.97,153.93,6.23653613]
[1641428160399,13.76825189,153.96,153.93,6.23653613]
[1641428160597,13.76825189,153.96,153.93,10.23653613]
[1641428160797,13.76825189,153.96,153.94,4.0]
[1641428160998,7.53351581,153.96,153.94,4.0]
[1641428161198,7.53351581,153.96,153.92,39.14895311]
[1641428161398,7.53351581,153.96,153.92,35.14895311]
[1641428161598,7.53351581,153.96,153.92,39.14895311]
[1641428161798,7.53351581,153.96,153.93,4.0]
[1641428161997,36.73283369,154.0,153.95,4.0]
[1641428162197,64.39762369,154.02,153.96,4.0]
[1641428162399,36.73283369,154.02,153.97,4.0]
[1641428162601,36.73283369,154.02,153.99,4.0]
[1641428162797,36.73283369,154.02,153.96,6.486767]
[1641428162798,36.73283369,154.02,154.0,4.0]
[1641428163000,36.73283369,154.02,153.97,4.0]
[1641428163198,27.66479,154.06,153.98,27.66479]
[1641428163599,27.66479,154.06,153.98,31.66479]
[1641428164200,27.66479,154.06,153.99,4.0]
[1641428164599,36.73283369,154.07,153.99,4.0]
[1641428164801,36.73283369,154.07,153.98,31.66479]
[1641428165002,36.73283369,154.07,153.99,6.48529459]
[1641428165301,36.73283369,154.07,154.0,4.0]
[1641428165902,36.73283369,154.07,154.01,4.0]
[1641428166102,36.73283369,154.08,154.02,4.0]
[1641428166302,36.73283369,154.08,154.03,4.0]
[1641428166602,36.73283369,154.08,154.06,6.23109402]
[1641428167006,16.79322806,154.13,154.1,6.22954628]
[1641428167408,16.79322806,154.13,154.1,10.22954628]
[1641428167607,16.79322806,154.13,154.1,6.22954628]
[1641428167811,16.79322806,154.13,154.1,10.22954628]
[1641428168010,54.98652283,154.16,154.12,4.0]
[1641428168209,91.7151047,154.2,154.15,4.0]
[1641428168210,146.70162753,154.2,154.15,4.0]
[1641428168410,54.98652283,154.2,154.16,4.0]
[1641428168809,54.98652283,154.2,154.17,10.22684429]
[1641428169009,54.98652283,154.2,154.17,6.22684429]
[1641428169618,4.0,154.22,154.1,6.4806714]
[1641428169809,4.0,154.22,154.08,11.47636167]
[1641428170111,4.0,154.22,154.08,7.47636167]
[1641428170311,4.0,154.22,154.1,4.0]
[1641428170509,4.0,154.22,154.12,6.2285209]
[1641428170711,54.98652283,154.21,154.19,6.47689368]
[1641428171610,54.98652283,154.21,154.17,6.22686223]
[1641428171811,4.0,154.24,154.17,6.22686223]
[1641428172111,34.1456714,154.27,154.17,6.22686223]
[1641428172112,4.0,154.25,154.17,6.22686223]
[1641428172510,27.66479,154.27,154.18,4.0]
[1641428172711,27.66479,154.27,154.19,10.22580517]
[1641428172913,54.98652283,154.26,154.19,6.22580517]
[1641428173112,54.98652283,154.26,154.19,10.22580517]
[1641428173313,54.98652283,154.26,154.19,33.89059517]
[1641428173513,54.98652283,154.26,154.19,6.22580517]
[1641428173914,4.0,154.28,154.19,6.22580517]
[1641428174516,4.0,154.23,154.11,7.47481875]
[1641428175418,27.66479,154.19,154.11,7.47481875]
[1641428176518,54.98652283,154.24,154.17,6.22686051]
[1641428176721,54.98652283,154.24,154.18,6.477523]
[1641428177120,54.98652283,154.25,154.18,6.477523]
[1641428177319,54.98652283,154.25,154.18,10.477523]
[1641428177518,54.98652283,154.25,154.17,6.22686051]
[1641428177919,54.98652283,154.25,154.21,4.0]
[1641428178120,48.76295534,154.25,154.21,4.0]
[1641428178321,48.76295534,154.28,154.17,12.7045933]
[1641428178518,52.76295534,154.28,154.17,12.7045933]
[1641428179018,4.0,154.29,154.17,12.7045933]
[1641428179222,4.0,154.29,154.17,16.7045933]
[1641428179520,27.66479,154.27,154.17,16.7045933]
[1641428179921,27.66479,154.27,154.19,4.0]
[1641428180321,27.66479,154.27,154.18,4.0]
[1641428180521,27.66479,154.29,154.18,4.0]
[1641428180719,27.66479,154.29,154.17,12.7045933]
[1641428180920,27.66479,154.29,154.17,16.7045933]
[1641428181221,27.66479,154.29,154.18,4.0]
[1641428181422,55.32958,154.29,154.18,31.66479]
[1641428181622,55.32958,154.29,154.26,5.18581639]
[1641428183423,27.66479,154.29,154.26,5.18581639]
[1641428183926,94.72159,154.33,154.26,5.18581639]
[1641428184627,16.74758336,154.32,154.29,5.18478453]
[1641428185027,16.74758336,154.32,154.27,0.41532267]
[1641428185428,27.66479,154.33,154.25,6.22360567]
[1641428186533,27.66479,154.33,154.23,2.89543582]
[1641428186934,1.10456418,154.25,154.2,2.89543582]
[1641428187134,1.10456418,154.25,154.18,58.22501582]
[1641428187536,1.10456418,154.25,154.21,27.66479]
[1641428187736,36.64292062,154.27,154.21,27.66479]
[1641428187935,37.7474848,154.27,154.21,30.56022582]
[1641428188136,36.64292062,154.27,154.24,2.89543582]
[1641428188438,36.64292062,154.27,154.22,2.89543582]
[1641428188637,36.64292062,154.26,154.25,2.89543582]
[1641428189036,36.64292062,154.26,154.23,2.89543582]
[1641428189238,36.64292062,154.26,154.22,2.89543582]
[1641428189640,36.64292062,154.26,154.23,2.89543582]
[1641428190040,37.7474848,154.29,154.23,2.89543582]
[1641428190641,36.64292062,154.29,154.28,6.22215957]
[1641428190841,37.7474848,154.29,154.28,6.22215957]
[1641428191043,1.10456418,154.29,154.28,6.22215957]
[1641428191641,5.10456418,154.29,154.15,6.47878199]
[1641428191841,1.10456418,154.21,154.17,44.11512278]
[1641428192041,36.64292062,154.29,154.17,7.47220216]
[1641428192243,1.10456418,154.25,154.17,7.47220216]
[1641428192441,1.10456418,154.24,154.17,10.36763798]
[1641428193042,1.10456418,154.24,154.17,7.47220216]
[1641428193442,4.0,154.28,154.17,7.47220216]
[1641428193644,1.10456418,154.24,154.18,27.66479]
[1641428193844,13.74121365,154.23,154.18,27.66479]
[1641428194245,13.74121365,154.23,154.19,9.3723295]
[1641428194447,13.74121365,154.23,154.22,6.47563542]
[1641428194644,13.74121365,154.23,154.22,16.84063542]
[1641428194845,36.64292062,154.27,154.22,16.84063542]
[1641428195246,48.47279769,154.26,154.23,2.89543582]
[1641428195445,48.47279769,154.26,154.24,2.89543582]
[1641428195645,48.47279769,154.26,154.25,27.66479]
[1641428196449,48.47279769,154.26,154.22,13.9451996]
[1641428196845,48.47279769,154.26,154.25,4.5789044]
[1641428197047,4.39300794,154.28,154.26,6.22325152]
[1641428197646,3.28844376,154.28,154.26,6.22325152]
[1641428197846,4.39300794,154.28,154.26,6.22325152]
[1641428198046,3.28844376,154.27,154.26,6.22325152]